Cogmind - Beta 13 *** ADVENTURER MODE // 2024.04.14 @ 13:36:41 Player: SlyFyer Result: Destroyed by Shrapnel Trap Performance ------------- Evolutions (0) 0 Regions Visited (2) 400 Robots Destroyed (26) 130 Value Destroyed (526) 526 Prototype IDs (0) 0 Alien Tech Used (0) 0 Bonus (0) 0 TOTAL SCORE: 1056 Bonus ------- None Cogmind --------- Core Integrity 0/250 Matter 231/300 Energy 246/250 System Corruption 0% Temperature Cool (2) Movement Treading (250) Ox1 Location -10/Subcaves Parts ------- > --- POWER (1) -------- Ion Engine > --- PROPULSION (2) --- Light Treads Spiked Treads > --- UTILITY (2) ------ High-capacity Storage Unit Makeshift Light Armor Plating > --- WEAPON (2) ------- Subdweller Beam Cannon Battle Rifle > --- INVENTORY (20) --- Disposable Heat Sink High-capacity Storage Unit High-capacity Storage Unit Large Battery (200) High-capacity Matter Pod (70) Weight Redist. System Targeting Computer Beam Cannon Beam Cannon Beam Cannon Beam Cannon Subdweller Beam Cannon Subdweller Machine Gun Light Cannon Mini Grenade Launcher Mini Grenade Launcher Datajack Mining Laser Welding Torch Maul Peak State ------------ > --- POWER ------------ Ion Engine > --- PROPULSION ------- Light Treads Spiked Treads > --- UTILITY ---------- High-capacity Storage Unit Makeshift Light Armor Plating > --- WEAPON ----------- Subdweller Beam Cannon Battle Rifle > --- INVENTORY -------- Disposable Heat Sink High-capacity Storage Unit High-capacity Storage Unit Large Battery High-capacity Matter Pod Weight Redist. System Targeting Computer Beam Cannon Beam Cannon Beam Cannon Beam Cannon Subdweller Machine Gun Light Cannon Mini Grenade Launcher Mini Grenade Launcher Datajack Mining Laser Welding Torch Maul [Rating: 15] Favorites ----------- Power Ion Engine Engine Ion Engine Propulsion Light Treads Treads Light Treads Utility High-capacity Storage Unit Storage High-capacity Storage Unit Processor Transport Network Coupler Protection Makeshift Light Armor Plating Weapon Assault Rifle Energy Cannon Subdweller Beam Cannon Ballistic Gun Assault Rifle Launcher Mini Grenade Launcher Impact Weapon Maul Build | -11 -10 -10 ------- Run | Yrd Mat Sub Slots Evolved . | . . . Power . | . . . Propulsion . | . . . Utility . | . . . Weapon . | . . . Parts Attached 19 | 6 6 7 Power 2 | 1 . 1 Engine 2 | 1 . 1 Core . | . . . Reactor . | . . . Propulsion 3 | 2 . 1 Treads 3 | 2 . 1 Leg . | . . . Wheel . | . . . Hover . | . . . Flight . | . . . Utility 6 | 1 4 1 Device . | . . . Storage 4 | 1 3 . Processor 1 | . 1 . Hackware . | . . . Protection 1 | . . 1 Artifact . | . . . Weapon 8 | 2 2 4 Energy Gun . | . . . Energy Cannon 1 | . . 1 Ballistic Gun 4 | 2 1 1 Ballistic Cannon . | . . . Launcher 2 | . . 2 Special Weapon . | . . . Impact Weapon 1 | . 1 . Slashing Weapon . | . . . Piercing Weapon . | . . . Special Melee Weapon . | . . . Unidentified Prototypes . | . . . Parts Lost 4 | . . 4 Power 1 | . . 1 Propulsion 1 | . . 1 Utility . | . . . Weapon 2 | . . 2 Highest Loss Streak 3 | . . 3 To Critical Strikes 1 | . . 1 Average Slot Usage (%) 94 | . 97 91 Engine 12 | . 14 10 Treads 26 | . 28 24 Storage 14 | . 14 14 Processor 10 | . 11 8 Protection 2 | . . 5 Energy Cannon 4 | . . 9 Ballistic Gun 20 | . 27 11 Launcher 3 | . . 7 Naked Turns . | . . . Heaviest Build 59 | 14 49 59 Greatest Support 40 | 40 40 40 Greatest Overweight (x) 2 | 1 1 2 Average Overweight (x) . | . . 1 Largest Inventory Capacity 20 | 8 20 20 Average Capacity 17 | 6 16 20 Most Carried 20 | 5 18 20 Average Carried 15 | 1 12 18 Final Capacity 20 | 8 20 20 Final Carried 20 | 1 18 20 Class Distribution -------------------- 84% | Mutant 15% | Derelict-Mutant Dominant Class ---------------- Mutant | -10/Materials Mutant | -10/Subcaves Resources | -11 -10 -10 ----------- Run | Yrd Mat Sub Matter Collected 852 | 237 463 152 Remotely . | . . . Salvage Created 628 | . 442 186 Parts 45 | . 34 11 Haulers Intercepted 2 | . 2 . Recyclers Shooed 1 | . 1 . Parts Field Recycled . | . . . Retrieved Matter . | . . . Parts Self-Destructed 12 | . . 12 Prevented . | . . . Kills | -11 -10 -10 ------- Run | Yrd Mat Sub Combat Hostiles Destroyed 19 | . 12 7 Guns 12 | . 12 . Cannons 2 | . . 2 AOE 4 | . . 4 Classes Destroyed 6 | . 5 1 Worker 2 | . 2 . Hauler 2 | . 2 . Watcher 3 | . 3 . Swarmer 9 | . 9 . Grunt 3 | . 3 . Subdweller 7 | . . 7 Best Kill Streak 8 | . 8 4 Combat Bots Only 5 | . 5 4 Max Kills in Single Turn 2 | . 2 2 Gunslinging . | . . . Exploded 2 | . . 2 Melee . | . . . Uniques/NPCs Destroyed . | . . . Combat | -11 -10 -10 -------- Run | Yrd Mat Sub Hostile Shots Fired 107 | . 61 46 Missed 37 | . 25 12 Damage Taken 999 | . 252 747 Core 266 | . 46 220 Absorbed by Shields . | . . . Ignored by Resistances 282 | . 86 196 Core Remaining (%) 100 | 100 . . Volleys Fired 74 | . 55 19 Largest 2 | . 2 2 Hottest 105 | . 40 105 Shots Fired 147 | . 110 37 Gun 127 | . 110 17 Cannon 10 | . . 10 Launcher 10 | . . 10 Special . | . . . Kinetic 127 | . 110 17 Thermal 10 | . . 10 Explosive 10 | . . 10 Electromagnetic . | . . . Robot Hit Streak 21 | . 15 21 Robot Miss Streak 2 | . 2 1 Penetration Max . | . . . Secondary Targets 2 | . 2 . Max Gunslinging Chain 1 | . 1 . Shots Hit Robots 97 | . 75 22 Core Hits 40 | . 27 13 Critical Kills 1 | . . 1 Critical Parts Destroyed 2 | . 2 . Critical Strikes 3 | . 2 1 Meltdown 1 | . . 1 Destroy 2 | . 2 . Melee Attacks 3 | . 3 . Impact 3 | . 3 . Slashing . | . . . Piercing . | . . . Sneak Attacks . | . . . Combat Hostiles . | . . . Follow-up Attacks . | . . . Damage Inflicted 2050 | . 979 1071 Guns 1090 | . 979 111 Cannons 136 | . . 136 Explosions 824 | . . 824 Melee . | . . . Ramming . | . . . Kinetic 1090 | . 979 111 Thermal 136 | . . 136 Explosive 824 | . . 824 Electromagnetic . | . . . Impact . | . . . Slashing . | . . . Piercing . | . . . Highest Corruption . | . . . Average Corruption . | . . . Corruption Purged . | . . . Corruption Blocked . | . . . Overload Shots . | . . . Overflow Damage . | . . . Projectiles . | . . . Explosions . | . . . Melee . | . . . Knockbacks . | . . . Impact . | . . . Kinetic . | . . . Secondary . | . . . Self-Inflicted Damage 84 | . . 84 Shots 5 | . . 5 Rammed . | . . . Targets Rammed . | . . . Kicked . | . . . Crushed . | . . . Highest Temperature 34 | . 5 34 Average Temperature 18 | . 5 19 Received Heat Transfer 186 | . 114 72 Siege Activations . | . . . Robots Corrupted . | . . . Combat Hostiles . | . . . Parts Fried . | . . . Impact Corruptions . | . . . Robots Melted 1 | . . 1 Combat Hostiles 1 | . . 1 Parts Melted . | . . . Heat Transferred 185 | . . 185 Parts Sabotaged . | . . . Parts Stolen . | . . . Parts Stripped . | . . . Power Chain Reactions . | . . . Alert | -11 -10 -10 ------- Run | Yrd Mat Sub Peak Influence 313 | . 313 . Initial . | . . . Average 74 | . 76 . Maximum Alert Level 1 | . 1 . Low Security (%) 80 | 100 80 . Level 1 19 | . 19 . Level 2 . | . . . Level 3 . | . . . Level 4 . | . . . Level 5 . | . . . High Security . | . . . Max Security . | . . . Squads Dispatched 1 | . 1 . Investigation 1 | . 1 . Extermination . | . . . Reinforcement . | . . . Assault . | . . . Garrison . | . . . Intercept . | . . . Searches Triggered . | . . . Construction Impeded . | . . . Haulers Reinforced . | . . . Active Scanning Responses . | . . . Cargo Convoy Interrupts . | . . . Stealth | -11 -10 -10 --------- Run | Yrd Mat Sub Distress Signals 2 | . 2 . Communications Jammed . | . . . Distress Signals . | . . . Times Spotted 31 | . 24 7 Peak Tracking Total 7 | . 7 4 Tactical Retreats 4 | . 4 . Traps | -11 -10 -10 ------- Run | Yrd Mat Sub Traps Triggered 5 | . 2 3 Indirectly . | . . . Trap Hack Attempts . | . . . Triggered . | . . . Disarmed . | . . . Reprogrammed . | . . . Reused . | . . . Traps Extracted . | . . . Installed . | . . . Triggered . | . . . Machines | -11 -10 -10 ---------- Run | Yrd Mat Sub Machines Disabled . | . . . Max in Single Turn . | . . . Machines Repaired . | . . . Machines Dismantled . | . . . Machines Sabotaged . | . . . Overloaded Fab Kills . | . . . Hacking | -11 -10 -10 --------- Run | Yrd Mat Sub Machines Accessed 2 | . 2 . Terminals 2 | . 2 . Fabricators . | . . . Repair Stations . | . . . Recycling Units . | . . . Scanalyzers . | . . . Garrison Access . | . . . Total Hacks 4 | . 4 . Successful 3 | . 3 . Failed 1 | . 1 . Catastrophic . | . . . Database Lockouts . | . . . Manual 2 | . 2 . Terminals 4 | . 4 . Fabricators . | . . . Repair Stations . | . . . Recycling Units . | . . . Scanalyzers . | . . . Garrison Access . | . . . Terminal Hacks 3 | . 3 . Terminal Index 1 | . 1 . Locate Traps 1 | . 1 . Hauler Manifests 1 | . 1 . Fabricator Hacks . | . . . Repair Station Hacks . | . . . Recycling Unit Hacks . | . . . Scanalyzer . | . . . Garrison Access Hacks . | . . . Unauthorized Hacks . | . . . Terminals . | . . . Fabricators . | . . . Repair Stations . | . . . Recycling Units . | . . . Scanalyzers . | . . . Garrison Access . | . . . Data Cores Recovered . | . . . Used . | . . . Hacking Detections 1 | . 1 . Full Trace Events 1 | . 1 . Feedback Events . | . . . Feedback Blocked . | . . . Robot Schematics Acquired . | . . . Robots Built . | . . . Authchips . | . . . Time . | . . . Total Robot Build Rating . | . . . Part Schematics Acquired . | . . . Parts Built . | . . . Authchips . | . . . Time . | . . . Total Part Build Rating . | . . . Parts Repaired . | . . . Time . | . . . Parts Recycled . | . . . Recycled Matter . | . . . Retrieved Matter . | . . . Retrieved Components . | . . . Parts Scanalyzed . | . . . Part Schematics Acquired . | . . . Parts Damaged . | . . . Bothacking | -11 -10 -10 ------------ Run | Yrd Mat Sub Used RIF Installer . | . . . Robots Hacked . | . . . Non-combat . | . . . Combat . | . . . Robot Hacks Applied . | . . . Relay Couplers Released . | . . . Fabnet Peak Effective % . | . . . Robots Rewired . | . . . Allies Hacked . | . . . Hacks Repelled . | . . . Allies | -11 -10 -10 -------- Run | Yrd Mat Sub Total Allies . | . . . Largest Group . | . . . Highest-Rated Group . | . . . Highest-Rated Ally . | . . . Total Orders . | . . . Ally Attacks . | . . . Total Damage . | . . . Kills . | . . . Allies Corrupted . | . . . Allies Melted . | . . . Intel | -11 -10 -10 ------- Run | Yrd Mat Sub Robot Analysis Total . | . . . Derelict Logs Recovered . | . . . Drone Launches . | . . . Drone Recoveries . | . . . Exploration | -11 -10 -10 ------------- Run | Yrd Mat Sub Turns Passed 3305 | 49 1838 1418 Spaces Moved 1189 | 38 636 515 Core 23 | 23 . . Treads 1166 | 15 636 515 Legs . | . . . Wheels . | . . . Hover . | . . . Flight . | . . . Fastest Speed 50 | 50 160 240 Average Speed 225 | 98 203 261 Slowest Speed 320 | 160 240 320 Overloaded Moves . | . . . Propulsion Burnouts . | . . . Robots Hopped . | . . . Cave-ins Triggered . | . . . Exploration Rate (%) 46 | 3 90 46 Regions Visited 2 Branch Regions 1 Pre-discovered Areas . | . . . Known Exits Taken . | . . . Unknown Exits Taken 2 | 1 1 . Scrap Searched 3 | . . 3 Spaces Dug 4 | . 3 1 Terrain Destroyed 56 | . 3 53 Melee 3 | . 3 . Projectile 2 | . . 2 AOE 51 | . . 51 Terrain Rammed . | . . . Walls Destroyed . | . . . Machines Disabled . | . . . Actions | -11 -10 -10 --------- Run | Yrd Mat Sub Total 1664 | 49 1063 552 Wait 345 | . 345 . Move 1187 | 37 635 515 Hop . | . . . Pick Up 32 | 6 17 9 Fast Attach 3 | 1 2 . Attach 9 | 5 . 4 Detach . | . . . Swap 7 | . 4 3 Drop 4 | . 2 2 Fire 74 | . 55 19 Melee 3 | . 3 . Ram . | . . . Kick . | . . . Crush . | . . . Escape Stasis . | . . . Rewire . | . . . Trap . | . . . Miscellaneous . | . . . Route ------- -11/Scrapyard -10/Materials (discovered 6 exits: [*Mat x3] / [*Min x2] / [*Sub]) -10/Subcaves (discovered 1 exit: [*Mat]) History --------- Turn | Location | Event 7 | -11/Scrapyard | Discovered new exit (range 14) 50 | -11/Scrapyard | Entered Materials 317 | -10/Materials | Build established: Mutant 380 | -10/Materials | Discovered new exit (range 15) 538 | -10/Materials | Discovered new exit (range 13) 629 | -10/Materials | Discovered new exit (range 7) 829 | -10/Materials | Discovered new exit (range 11) 1417 | -10/Materials | Discovered new exit (range 14) 1856 | -10/Materials | Discovered new exit (range 6) 1888 | -10/Materials | Entered Subcaves 1973 | -10/Subcaves | Ambushed by Subdwellers from Twisted Machinery 1990 | -10/Subcaves | Core integrity fell below 50% 2018 | -10/Subcaves | Lost 3 parts (1p2w) 2535 | -10/Subcaves | Discovered new exit (range 5) 2635 | -10/Subcaves | Core integrity fell below 20% 2719 | -10/Subcaves | Shifting Twisted Machinery released Spk. Treads 2745 | -10/Subcaves | Shifting Twisted Machinery released Mak. Light Armor Plating 2886 | -10/Subcaves | A swath of the cavern ceiling suddenly collapsed 3084 | -10/Subcaves | Build established: Derelict-Mutant 3306 | -10/Subcaves | Destroyed by Shrapnel Trap Last Messages --------------- 02644_ Acquired Sub. Machine Gun. Spk. Treads falls loose from the Twisted Machinery. Mak. Light Armor Plating falls loose from the Twisted Machinery. 02750_ Acquired Spk. Treads. 02777_ Acquired Mak. Light Armor Plating. 02778_ Discarded Transport Network Coupler. A swath of the cavern ceiling suddenly collapses. 03043_ Y4-FGH(R): "SUBMAD!" 03048_ Acquired Sub. Beam Cannon. 03052_ Y4-FGH(R) destroyed. 03055_ Subatomizers dissect the Disposable Heat Sink. 03087_ Acquired 47 matter. 03092_ Subatomizers dissect the Disposable Heat Sink. 03300_ Triggered Piercing Trap. 03300_ Spikes shoot up from the floor. 03302_ Triggered Piercing Trap. 03302_ Spikes shoot up from the floor. 03302_ Critical hit (Impale). 03306_ Triggered Shrapnel Trap. 03306_ An expanding cloud of shrapnel blasts out in all directions. Map ----- +----------------------------------------------------+ | ????????????????????????????? #???# | | ????????????????????????????? #???# # | | ????????????????????????????? ???## #### | | ??????????????????????????### #???????????## | | ??????????????????????????# ????????????# | | ??????????????????????????# ?????????????# | | ??????????????????????????? ????????????## | | ???????????????????#####??? ##?# # #### # | | ????????????????#### ##### #????? # ### | | ????????????????# ## #?# #### #?? | | ????????????????## ## #?#????????## #?? | | ?????????????????# ##??????????## ##? | | ?????????????????# ## #"#????????#### #? | | ?????????????????##### ## ##???????## #? | | ?????????????????????#### ##??????# ## | | ??????????????????????## ##?????# ### | | ??????????????????????# ####### " ##?# | | ?????????????????????## [ ## ## ""###??? | | ?????????????????????# # "#"#????? | | ?????????????????????## ## ### ##"##??### | | ????????????????##????# ### #?# ###""#?##"" | | ????????????????# ???###?# ##?# ###?###"##"" | | ??????????????### ??##?# #?# ## #???###"## | | ??????????????# ## ## ## #"??#"###" | | ???????????????# # # """#""""" | | ????????????????????# @ "####### | | ????????????????????# ^ # ## #??????## | | ????????????????????## #######? ????#" | | ?????????????????????# ##??????? ??? #" | | ????????????????????# ^ #####???????? #?????### | | ????????????????????## #?????????????####????????# | | ?????????????????????##??????????????????????????? | | ?????????????????????????????????????????????????? | | ?????????????????????????????????????????????????? | | ?????????????????????????????????????????????????? | | ?????????????????????????????????????????????????? | | ?????????????????????????????????????????????????? | | ?????????????????????????????????????????????????? | | ?????????????????????????????????????????????????? | | ?????????????????????????????????????????????????? | | ?????????????????????????????????????????????????? | | ?????????????????????????????????????????????????? | | ?????????????????????????????????????????????????? | | ?????????????????????????????????????????????????? | | ?????????????????????????????????????????????????? | | ?????????????????????????????????????????????????? | | | | | | | | | +----------------------------------------------------+ Best States ------------- Heat Dissipation 25 Energy Generation 10 Energy Capacity 250 Matter Stores 300 Matter Capacity 300 Sight Range 16 Terrain Scan Density 10 Armor Coverage 100 Resistance: KI 20 Resistance: TH 20 Resistance: EX 20 Resistance: EM 20 Resistance: I 20 Resistance: S 20 Resistance: P 20 Evasion (%) 50 Recoil Reduction 2 Offensive Hacking 10 Item Schematics ----------------- None Robot Schematics ------------------ None Fabricated ------------ Nothing Alien Tech Used ----------------- None Achievements -------------- None Challenges ------------ None Game ------ Seed ArmorThiefWeb Manual? 0 Play Time 00:18:34 Cumulative 37.2 hours Start 2024.04.14 @ 11:08:46 End 2024.04.14 @ 13:36:41 Sessions 1 Manual Loads 0 Difficulty Adventurer Special Mode None Game No. 20 Rogue 0 Adventurer 20 Explorer 0 Win Type - Total 1 Types 1/0/0/0/0/0/0/0/0 Lore% 29 Gallery% 41 Achievement% 36 Wizard Run 0 Options --------- Layout 0 ASCII 0 Keyboard 0 Movement Mouse Keybinds 0 Fullscreen 1 Font 18/SmallcapsGlow Map View 76x50 Zoom Use 0% Tactical HUD 1 Map Filters NONE Filters NONE Steam 1 RUN: 3491e485-7555-4d7b-8c82-1d21e479a202